Cogmind - Beta 16 @@@ ROGUE MODE // 2025.10.27 @ 10:20:50 Player: BertMcSee Result: Self-destructed Performance ------------- Evolutions (3) 1500 Regions Visited (5) 1000 Robots Destroyed (97) 485 Value Destroyed (2216) 2216 Prototype IDs (1) 20 Alien Tech Used (0) 0 Bonus (66) 66 TOTAL SCORE: 5287 Bonus ------- High Alert Combat Kills 66 Cogmind --------- Core Integrity 473/700 Matter 228/300 Energy 99/100 System Corruption 5% Temperature Cool (0) Movement Core (50) Location -7/Factory Parts ------- > --- POWER (1) -------- (None) > --- PROPULSION (5) --- (None) > --- UTILITY (5) ------ (None) > --- WEAPON (2) ------- (None) > --- INVENTORY (5) ---- Visual Processing Unit Seismic Detector Improved Targeting Computer Hacking Suite Peak State ------------ > --- POWER ------------ Light Nuclear Core > --- PROPULSION ------- Aluminum Leg Carbon-fiber Leg Titanium Leg Titanium Leg Improved Titanium Leg > --- UTILITY ---------- Advanced Visual Processing Unit Sensor Array Improved Signal Interpreter Terrain Scanner Terrain Scan Processor > --- WEAPON ----------- Heavy Assault Cannon > --- INVENTORY -------- Aluminum Leg Seismic Detector Improved Targeting Computer Hacking Suite [Rating: 33] Favorites ----------- Power Light Nuclear Core Engine Ion Engine Power Core Light Nuclear Core Propulsion Wheel Leg Aluminum Leg Wheel Wheel Flight Unit Flight Unit Utility Terrain Scan Processor Device Terrain Scanner Storage Small Storage Unit Processor Terrain Scan Processor Weapon Light Cannon Energy Gun Medium Laser Ballistic Gun Assault Rifle Ballistic Cannon Light Cannon Launcher Proton Missile Launcher Build | -11 -10 -10 -9 -8 -7 ------- Run | Yrd Mat Min Mat Mat Fac Slots Evolved 6 | . . . 2 2 2 Power . | . . . . . . Propulsion 3 | . . . 1 2 . Utility 3 | . . . 1 . 2 Weapon . | . . . . . . Parts Attached 77 | 7 11 . 18 31 10 Power 12 | 1 2 . 2 5 2 Engine 7 | 1 2 . 2 . 2 Core 5 | . . . . 5 . Reactor . | . . . . . . Propulsion 31 | 2 3 . 7 16 3 Treads . | . . . . . . Leg 16 | . . . . 13 3 Wheel 12 | 2 3 . 7 . . Hover . | . . . . . . Flight 3 | . . . . 3 . Utility 17 | 2 1 . 7 3 4 Device 11 | 1 . . 6 1 3 Storage 2 | 1 1 . . . . Processor 4 | . . . 1 2 1 Hackware . | . . . . . . Protection . | . . . . . . Artifact . | . . . . . . Weapon 17 | 2 5 . 2 7 1 Energy Gun 4 | 1 1 . . 2 . Energy Cannon . | . . . . . . Ballistic Gun 3 | 1 . . 2 . . Ballistic Cannon 9 | . 4 . . 5 . Launcher 1 | . . . . . 1 Special Weapon . | . . . . . . Impact Weapon . | . . . . . . Slashing Weapon . | . . . . . . Piercing Weapon . | . . . . . . Special Melee Weapon . | . . . . . . Unidentified Prototypes 1 | . . . 1 . . Parts Lost 13 | . . . 2 4 7 Power 2 | . . . 1 . 1 Propulsion 6 | . . . . 3 3 Utility 3 | . . . 1 1 1 Weapon 2 | . . . . . 2 Highest Loss Streak 4 | . . . 1 1 4 To Critical Strikes . | . . . . . . Average Backups 5 | 2 7 8 5 4 4 Power . | . 1 1 . . . Propulsion . | . 1 1 . . . Utility 3 | . 3 4 3 3 3 Weapon . | . 1 1 1 . . Tool/Special . | . . . . . . Unused Backups 15 | . 2 1 3 5 4 Power 1 | . . . . 1 . Propulsion 1 | . . 1 . . . Utility 6 | . . . 2 . 4 Weapon 7 | . 2 . 1 4 . Tool/Special . | . . . . . . Average Slot Usage (%) 92 | . 100 100 99 89 88 Engine 6 | . 14 14 10 3 4 Core 2 | . . . . 5 2 Leg 23 | . . . . 35 35 Wheel 11 | . 28 28 33 4 . Device 14 | . 14 14 21 12 14 Storage 3 | . 14 14 1 . . Processor 12 | . . . 9 11 22 Ballistic Cannon 13 | . 22 28 18 11 6 Peak Build Rating 33 | 7 8 8 17 32 33 Average Rating 21 | 5 7 7 12 25 30 On Entrance 10 | . 7 8 8 12 27 Avg Prop Armor Cover (%) 5 | . . . 3 5 . Naked Turns 55 | . . . . . 55 Heaviest Build 27 | 15 17 17 27 18 21 Greatest Support 93 | 20 26 20 30 93 79 Greatest Overweight (x) 3 | . . . 1 3 . Average Overweight (x) . | . . . . . . Largest Inventory Capacity 8 | 8 8 8 8 5 5 Average Capacity 5 | 7 8 8 5 5 5 Most Carried 8 | 7 8 8 8 5 5 Average Carried 5 | 2 7 7 5 4 4 Final Capacity 8 | 8 8 8 5 5 5 Final Carried 8 | 7 8 8 5 5 4 Class Distribution -------------------- 37% | Skirmisher 30% | Scavenger-Mutant 29% | Mutant Dominant Class ---------------- Mutant | -10/Materials Scavenger-Mutant | -10/Mines Scavenger-Mutant | -9/Materials Mutant | -8/Materials Skirmisher | -7/Factory Resources | -11 -10 -10 -9 -8 -7 ----------- Run | Yrd Mat Min Mat Mat Fac Matter Collected 2810 | 312 300 70 431 1386 311 Remotely . | . . . . . . Salvage Created 2354 | 150 390 . 267 1098 449 Parts 179 | 12 36 . 26 80 25 Haulers Intercepted 3 | . . . 1 2 . Recyclers Shooed . | . . . . . . Parts Field Recycled . | . . . . . . Retrieved Matter . | . . . . . . Parts Self-Destructed . | . . . . . . Prevented . | . . . . . . Parts Restored . | . . . . . . Kills | -11 -10 -10 -9 -8 -7 ------- Run | Yrd Mat Min Mat Mat Fac Combat Hostiles Destroyed 56 | . 12 . 7 29 8 Guns 7 | . 6 . . 1 . Cannons 48 | . 6 . 7 28 7 AOE 1 | . . . . . 1 Classes Destroyed 14 | 2 5 . 2 4 1 Worker 10 | . 3 . 2 5 . Builder 8 | . 1 . 2 1 4 Tunneler 5 | 4 . . . 1 . Hauler 3 | . . . 1 2 . Recycler 7 | 1 2 . 1 2 1 Mechanic 2 | . . . . 1 1 Operator 1 | . . . . 1 . Watcher 5 | . 1 . 1 3 . Swarmer 22 | . 9 . 6 7 . Grunt 18 | . 3 . . 15 . Duelist 1 | . . . . 1 . Sentry 7 | . . . 1 5 1 Hunter 3 | . . . . 1 2 Programmer 5 | . . . . . 5 Best Kill Streak 5 | 4 4 . 4 5 3 Combat Bots Only 5 | . 3 . 3 5 1 Max Kills in Single Turn 2 | 1 2 . 1 1 2 Gunslinging 1 | . 1 . . . . Exploded 1 | . . . . . 1 Melee . | . . . . . . Uniques/NPCs Destroyed . | . . . . . . Combat | -11 -10 -10 -9 -8 -7 -------- Run | Yrd Mat Min Mat Mat Fac Hostile Shots Fired 471 | . 61 . 66 192 152 Missed 146 | . 13 . 14 57 62 Hits 325 | . 48 . 52 135 90 Melee 1 | . . . . 1 . Projectile 324 | . 48 . 52 134 90 AOE 3 | . . . . . 3 Critical Strikes 7 | . . . . 4 3 Damage Taken 3877 | . 441 . 466 1697 1273 Core 693 | . 131 . 121 214 227 Absorbed by Shields . | . . . . . . Regen/Repaired (Parts) 295 | . . . 46 249 . Core Remaining (%) 69 | 100 . 47 69 61 . Volleys Fired 260 | 14 44 . 34 132 36 Largest 2 | 2 2 . 2 2 1 Hottest 110 | 70 100 . 60 110 50 Shots Fired 432 | 28 88 . 68 212 36 Gun 74 | 28 24 . 4 18 . Cannon 353 | . 64 . 64 194 31 Launcher 5 | . . . . . 5 Special . | . . . . . . Kinetic 376 | 14 69 . 68 194 31 Thermal 33 | 14 19 . . . . Explosive . | . . . . . . Electromagnetic 23 | . . . . 18 5 Robot Hit Streak 22 | 4 12 . 10 19 22 Robot Miss Streak 6 | 1 4 . 6 6 2 Penetration Max . | . . . . . . Secondary Targets 3 | . 3 . . . . Max Gunslinging Chain 1 | . 1 . . . . Shots Hit Robots 251 | 15 49 . 33 124 30 Core Hits 109 | 6 20 . 15 54 14 Critical Kills . | . . . . . . Critical Parts Destroyed . | . . . . . . Critical Strikes 19 | 1 4 . 1 8 5 Burn 3 | 1 2 . . . . Blast 16 | . 2 . 1 8 5 Melee Attacks . | . . . . . . Impact . | . . . . . . Slashing . | . . . . . . Piercing . | . . . . . . Sneak Attacks . | . . . . . . Combat Hostiles . | . . . . . . Follow-up Attacks . | . . . . . . Damage Inflicted 7307 | 194 795 . 565 4092 1661 Guns 630 | 194 207 . 42 187 . Cannons 6347 | . 588 . 523 3893 1343 Explosions 318 | . . . . . 318 Melee . | . . . . . . Ramming 12 | . . . . 12 . Kinetic 6517 | 73 643 . 565 3893 1343 Thermal 318 | 121 152 . . . 45 Explosive . | . . . . . . Electromagnetic 460 | . . . . 187 273 Impact . | . . . . . . Slashing . | . . . . . . Piercing . | . . . . . . Highest Corruption 5 | . . . . . 5 Average Corruption 2 | . . . . . 2 Corruption Purged . | . . . . . . Corruption Blocked . | . . . . . . Effects 26 | . . . . . 26 Message Errors 8 | . . . . . 8 Matter Fused 4 | . . . . . 4 Heat Flow Errors 8 | . . . . . 8 Energy Discharges 2 | . . . . . 2 Parts Fused 1 | . . . . . 1 Data Loss (minor) 3 | . . . . . 3 Overload Shots . | . . . . . . Overflow Damage 449 | . 25 . . 213 211 Projectiles 426 | . 25 . . 213 188 Explosions 23 | . . . . . 23 Melee . | . . . . . . Knockbacks 69 | . 9 . 6 38 16 Impact . | . . . . . . Kinetic 61 | . 9 . 6 31 15 Secondary 8 | . . . . 7 1 Self-Inflicted Damage 35 | . . . . . 35 Shots 2 | . . . . . 2 Rammed . | . . . . . . Targets Rammed 3 | . . . . 3 . Kicked 3 | . . . . 3 . Crushed . | . . . . . . Highest Temperature 254 | 36 254 . 1 99 236 Average Temperature 35 | 15 64 . 1 10 92 Received Heat Transfer 894 | . 30 . 36 684 144 Siege Activations . | . . . . . . Martial Activations . | . . . . . . Shielding Activations . | . . . . . . Robots Disrupted . | . . . . . . Combat Hostiles . | . . . . . . Robots Corrupted 1 | . . . . 1 . Combat Hostiles . | . . . . . . Parts Fried 4 | . . . . 3 1 Impact Corruptions 1 | . . . . 1 . Robots Melted . | . . . . . . Combat Hostiles . | . . . . . . Parts Melted 3 | 1 2 . . . . Heat Transferred 1086 | 444 592 . . . 50 Parts Sabotaged . | . . . . . . Parts Stolen . | . . . . . . Parts Stripped . | . . . . . . Power Chain Reactions 1 | . . . . . 1 Alert | -11 -10 -10 -9 -8 -7 ------- Run | Yrd Mat Min Mat Mat Fac Maximum Alert Level 2 | . . . . 2 1 Low Security (%) 82 | 100 100 100 100 48 98 Level 1 7 | . . . . 20 1 Level 2 10 | . . . . 31 . Level 3 . | . . . . . . Level 4 . | . . . . . . Level 5 . | . . . . . . High Security . | . . . . . . Max Security . | . . . . . . Peak Influence 495 | 5 108 13 91 495 212 Initial 212 | . . 13 . 24 212 Average 104 | 1 46 . 28 245 41 Influence Increases 2196 | 25 413 . 373 1028 357 Destroy 0b10 Robot/C 1120 | . 240 . 140 580 160 Destroy 0b10 Robot/NC 205 | 25 35 . 35 80 30 Destroy Leader 296 | . 52 . 34 130 80 Successful Hack 57 | . 23 . 11 7 16 Disable Machine 75 | . 15 . 30 15 15 Destroy Structure 38 | . 3 . 3 21 11 Partial Spotted 30 | . . . 30 . . Lose Combat Pursuer 375 | . 45 . 90 195 45 Influence Decreases 2075 | 25 378 35 315 619 703 Entered New Map 311 | . . 22 . 34 255 Time Decay 1634 | 25 378 13 295 545 378 Lost Part 130 | . . . 20 40 70 Squads Dispatched 12 | . 3 . 1 2 6 Investigation 3 | . 1 . 1 1 . Extermination 5 | . . . . . 5 Reinforcement 4 | . 2 . . 1 1 Assault . | . . . . . . Garrison . | . . . . . . Intercept . | . . . . . . Searches Triggered . | . . . . . . Construction Impeded . | . . . . . . Haulers Reinforced . | . . . . . . Active Scanning Responses . | . . . . . . Cargo Convoy Interrupts . | . . . . . . Stealth | -11 -10 -10 -9 -8 -7 --------- Run | Yrd Mat Min Mat Mat Fac Distress Signals 8 | . 3 . 1 4 . Communications Jammed . | . . . . . . Distress Signals . | . . . . . . Times Spotted 118 | . 25 . 16 65 12 Peak Tracking Total 7 | . 5 . 4 7 2 Tactical Retreats 16 | . 2 . 3 8 3 Traps | -11 -10 -10 -9 -8 -7 ------- Run | Yrd Mat Min Mat Mat Fac Traps Triggered 2 | . 2 . . . . Indirectly . | . . . . . . Trap Hack Attempts . | . . . . . . Triggered . | . . . . . . Disarmed . | . . . . . . Reprogrammed . | . . . . . . Reused . | . . . . . . Traps Extracted . | . . . . . . Installed . | . . . . . . Triggered . | . . . . . . Machines | -11 -10 -10 -9 -8 -7 ---------- Run | Yrd Mat Min Mat Mat Fac Machines Disabled 6 | . 2 . 2 1 1 Max in Single Turn 1 | . 1 . 1 1 1 Machines Repaired . | . . . . . . Machines Dismantled . | . . . . . . Machines Sabotaged . | . . . . . . Overloaded Fab Kills . | . . . . . . Hacking | -11 -10 -10 -9 -8 -7 --------- Run | Yrd Mat Min Mat Mat Fac Machines Accessed 25 | . 6 1 7 8 3 Terminals 16 | . 5 . 5 4 2 Fabricators . | . . . . . . Repair Stations 2 | . . . 1 1 . Recycling Units 4 | . 1 . 1 2 . Scanalyzers 2 | . . . . 1 1 Garrison Access . | . . . . . . Total Hacks 40 | . 7 1 14 15 3 Successful 24 | . 3 1 10 7 3 Failed 16 | . 4 . 4 8 . Catastrophic 2 | . . . . 2 . Database Lockouts . | . . . . . . Manual . | . . . . . . Terminals 26 | . 6 . 9 9 2 Fabricators . | . . . . . . Repair Stations 6 | . . . 4 2 . Recycling Units 5 | . 1 . 1 3 . Scanalyzers 2 | . . . . 1 1 Garrison Access . | . . . . . . Terminal Hacks 14 | . 2 1 6 3 2 Open Door 1 | . . 1 . . . Open DSF 1 | . . . . . 1 Level Access Points 1 | . 1 . . . . Branch Access Points 1 | . . . . 1 . Emergency Access Points 3 | . . . 2 . 1 Alert Level 1 | . . . . 1 . Locate Traps 2 | . . . 2 . . Maintenance Status 1 | . . . 1 . . Investigation Status 1 | . . . 1 . . Zone Layout 2 | . 1 . . 1 . Fabricator Hacks . | . . . . . . Repair Station Hacks 5 | . . . 3 2 . Scan Component 3 | . . . 2 1 . Repair 2 | . . . 1 1 . Recycling Unit Hacks 3 | . 1 . 1 1 . Retrieve Components 3 | . 1 . 1 1 . Scanalyzer 2 | . . . . 1 1 Retrieve Study 2 | . . . . 1 1 Garrison Access Hacks . | . . . . . . Unauthorized Hacks . | . . . . . . Terminals . | . . . . . . Fabricators . | . . . . . . Repair Stations . | . . . . . . Recycling Units . | . . . . . . Scanalyzers . | . . . . . . Garrison Access . | . . . . . . Data Cores Recovered 1 | . . . . 1 . Used . | . . . . . . Hacking Detections 13 | . 4 . 3 5 1 Full Trace Events 1 | . . . 1 . . Feedback Events . | . . . . . . Feedback Blocked . | . . . . . . Robot Schematics Acquired . | . . . . . . Robots Built . | . . . . . . Authchips . | . . . . . . Time . | . . . . . . Total Robot Build Rating . | . . . . . . Part Schematics Acquired . | . . . . . . Parts Built . | . . . . . . Authchips . | . . . . . . Time . | . . . . . . Total Part Build Rating . | . . . . . . Part Studies Acquired 2 | . . . . 1 1 Parts Repaired 2 | . . . 1 1 . Time 64 | . . . 26 38 . Parts Recycled . | . . . . . . Recycled Matter . | . . . . . . Retrieved Matter . | . . . . . . Retrieved Components 12 | . 4 . 8 . . Parts Scanalyzed . | . . . . . . Part Schematics Acquired . | . . . . . . Parts Damaged . | . . . . . . Bothacking | -11 -10 -10 -9 -8 -7 ------------ Run | Yrd Mat Min Mat Mat Fac Used RIF Installer . | . . . . . . Robots Hacked . | . . . . . . Non-combat . | . . . . . . Combat . | . . . . . . Robot Hacks Applied . | . . . . . . Relay Couplers Released . | . . . . . . Fabnet Peak Effective % . | . . . . . . Robots Rewired . | . . . . . . Allies Hacked . | . . . . . . Hacks Repelled . | . . . . . . Allies | -11 -10 -10 -9 -8 -7 -------- Run | Yrd Mat Min Mat Mat Fac Total Allies . | . . . . . . Largest Group . | . . . . . . Highest-Rated Group . | . . . . . . Highest-Rated Ally . | . . . . . . Total Orders . | . . . . . . Ally Attacks . | . . . . . . Total Damage . | . . . . . . Kills . | . . . . . . Allies Corrupted . | . . . . . . Allies Melted . | . . . . . . Intel | -11 -10 -10 -9 -8 -7 ------- Run | Yrd Mat Min Mat Mat Fac Active Infowar (turns) 7313 | 67 947 612 1020 2275 2392 Optics 3245 | . . . . 855 2390 Sensors 2333 | . . . . . 2333 Terrain 5047 | . . . 900 1757 2390 Seismic 3550 | 67 947 612 1004 920 . ECM 25 | . . . . . 25 Robot Analysis Total . | . . . . . . Derelict Logs Recovered 1 | . . 1 . . . Drone Launches . | . . . . . . Drone Recoveries . | . . . . . . Exploration | -11 -10 -10 -9 -8 -7 ------------- Run | Yrd Mat Min Mat Mat Fac Turns Passed 7874 | 132 947 612 1020 2607 2556 Spaces Moved 6106 | 91 802 617 1022 1617 1957 Core 105 | 1 . . . . 104 Treads . | . . . . . . Legs 3197 | . . . . 1344 1853 Wheels 2632 | 90 802 617 1022 101 . Hover . | . . . . . . Flight 172 | . . . . 172 . Fastest Speed 50 | 50 80 80 80 80 50 Average Speed 103 | 79 82 80 80 120 117 Slowest Speed 295 | 80 90 80 95 295 126 Overloaded Moves . | . . . . . . Propulsion Burnouts . | . . . . . . Robots Hopped . | . . . . . . Potential Cave-ins 2 | . . . . . 2 Cave-ins Triggered . | . . . . . . Exploration Rate (%) 51 | 5 71 90 54 70 20 Regions Visited 5 Branch Regions 1 Pre-discovered Areas . | . . . . . . Known Exits Taken 1 | . . 1 . . . Unknown Exits Taken 4 | 1 1 . 1 1 . Scrap Searched 1 | . . 1 . . . Spaces Dug . | . . . . . . Terrain Destroyed 29 | . . . . 19 10 Melee . | . . . . . . Projectile 27 | . . . . 19 8 AOE 2 | . . . . . 2 Terrain Rammed . | . . . . . . Walls Destroyed . | . . . . . . Machines Disabled . | . . . . . . Actions | -11 -10 -10 -9 -8 -7 --------- Run | Yrd Mat Min Mat Mat Fac Total 7200 | 118 1002 736 1150 2042 2152 Wait 648 | . 128 116 50 211 143 Move 6101 | 90 801 616 1021 1616 1957 Hop . | . . . . . . Pick Up 30 | 7 5 2 7 7 2 Fast Attach 46 | 7 4 . 6 26 3 Attach 7 | . . . 4 . 3 Detach . | . . . . . . Swap 35 | . 7 . 12 11 5 Drop 70 | . 13 2 16 36 3 Fire 260 | 14 44 . 34 132 36 Melee . | . . . . . . Ram . | . . . . . . Kick 3 | . . . . 3 . Crush . | . . . . . . Escape Stasis . | . . . . . . Rewire . | . . . . . . Trap . | . . . . . . Miscellaneous . | . . . . . . Route ------- -11/Scrapyard -10/Materials (discovered 5 exits: *Mat x3 / *Min x2) -10/Mines (discovered 2 exits: *Mat x2) -9/Materials (discovered 2 exits: *Mat / [*Min]) -8/Materials (discovered 2 exits: *Fac x2) -7/Factory (discovered 1 exit: [*Low]) History --------- Turn | Location | Event 15 | -11/Scrapyard | Discovered new exit (range 15) 133 | -11/Scrapyard | Entered Materials 176 | -10/Materials | Discovered new exit (range 10) 248 | -10/Materials | Identified exit to Materials 302 | -10/Materials | Build established: Mutant 788 | -10/Materials | Discovered new exit (range 13) 790 | -10/Materials | Discovered new exit (range 12) 990 | -10/Materials | Core integrity fell below 50% 1022 | -10/Materials | Build established: Scavenger-Mutant 1080 | -10/Materials | Entered Mines 1086 | -10/Mines | Found the Drone Emporium 1093 | -10/Mines | Found Prototype Device 1338 | -10/Mines | Discovered exit to Materials (range 16) 1542 | -10/Mines | Discovered exit to Materials (range 5) 1567 | -10/Mines | Learned Materials security intel 1692 | -10/Mines | Entered Materials 1692 | -9/Materials | Evolved 2 slots: Propulsion x1, Utility x1 1696 | -9/Materials | Identified Splice Drone Bay 2077 | -9/Materials | Discovered new exit (range 13) 2192 | -9/Materials | Repaired Lgt. Cannon 2262 | -9/Materials | Discovered new exit (range 8) 2712 | -9/Materials | Entered another Materials area 2712 | -8/Materials | Evolved 2 slots: Propulsion x2 3420 | -8/Materials | Build established: Mutant 4115 | -8/Materials | Discovered new exit (range 15) 4937 | -8/Materials | Repaired Hvy. Assault Cannon+ 5119 | -8/Materials | Discovered new exit (range 10) 5232 | -8/Materials | Build established: Skirmisher 5319 | -8/Materials | Entered Factory 5319 | -7/Factory | Evolved 2 slots: Utility x2 5656 | -7/Factory | Identified exit to DSF 6840 | -7/Factory | Discovered new exit (range 16) 7706 | -7/Factory | Lost 4 parts (1p1n1u1w) 7820 | -7/Factory | Released all parts (9) 7875 | -7/Factory | Self-destructed Last Messages --------------- 07784_ U-05 Engineer lays Concrete. 07785_ R-06 Scavenger collects Welding Torch. 07790_ R-06 Scavenger collects Corrupted Structural Scanner. 07792_ U-05 Engineer lays Concrete. 07793_ R-06 Scavenger collects Corrupted Assault Rifle. 07801_ U-05 Engineer lays Concrete. 07803_ U-05 Engineer builds a Wall. 07805_ Proton Missile Launcher destroyed. [A new version of Cogmind is available, see F1 News page.] 07807_ U-05 Engineer builds a Wall. 07820_ Released Imp. Deuterium Engine. 07820_ Released Carbon-fiber Leg+. 07820_ Released Imp. Signal Interpreter. 07820_ Released Adv. Visual Processing Unit. 07820_ Released Aluminum Leg. 07820_ Released Titanium Leg. 07820_ Released Terrain Scan Processor. 07820_ Released Terrain Scanner. 07820_ Released Adv. ECM Suite. 07829_ System corrupted: Matter fused (-9). Map ----- +----------------------------------------------------+ | ????????????## # ^ | | ?????????????# # ! | | ???????????#?########### ==/ != | | ?????????????#??#??##### ==/ """ "" = | | ??????????############## ]]! ==/ """T" " | | ??????????# # ]! ###+########## | | ??????????# # ]!! """ # | | ????????#?# # """ # | | ??????????# # """ # | | ??????????# """ """ # # | | ??????????# """ """ + # | | ??????????# """ """ # # | | ???????#??# # ##################### | | ??????????# """ # # #? ? | | ?????????## """ "" # # ! # ?""" | | ??????????# """ S"" # # # ? ""?" | | ??????????# "" # # ! #??????? | | ????????#?############## + #???"??" | | ????????#?#??########?## # #?? "??? | | ?????#????#???########## # ! #? ????? | | ??????################## # # ?????? | | ??????#/ !]/# # #????? ? | | ??????# # # #? ???"? | | ??????# # # # ?????? | | ??????# + # #????"?" | | ?????## # @ ############## ???? | | ??????# ! # ###/###########?##### "??? | | ??????# [# # """" #######?? ??"?" | | ???#??# ####### """" ""S"" ##?##### "??" | | ?????###############?## """" "" "" #####?## ?? | | ??????????????#?##?#### """" # ## | | ???????#???#??#?#?##### """" ! # ##?###### | | ???????#????????####### """" # ######### | | ?????????????#?##?###?# """" # [=! ######?## | | ??????????????####?##?# """" ! # [=! ######### | | ??????????????##??##### # [! + | | ?????????##??????###### # # ^^ | | ??????????????????##??# ####### ^^ | | ????????????????????#?# + | | ??????????????????#?#?###########/########+##### | | ???????????????????#?##?######### #### # | | ????????????????????##???######## #### # | | ???????????????????????####?##### #### # | | ?????????????????????####??####?# ##?# # | | ?????????????????????##??##?##### #### """" # | | ????????????????????#?####?####?# + """" # | | ????????????????????##?##?##?######### """" # | | ??????????????????????????#?##?####### """" # | | ????????????????????????#?#######?##?############# | | ??????????????????????#????#???#??##?###?######### | +----------------------------------------------------+ Best States ------------- Heat Dissipation 34 Energy Generation 16 Energy Capacity 290 Matter Stores 300 Matter Capacity 300 Sight Range 20 Robot Scan Range 14 Terrain Scan Range 16 Terrain Scan Density 85 ECM Strength 2 Additional Mass Support 6 Evasion (%) 55 Item Schematics ----------------- None Robot Schematics ------------------ None Fabricated ------------ Nothing Repaired ---------- Lgt. Cannon | 61% | -9/Materials Hvy. Assault Cannon | 1% | -8/Materials Studied --------- Hvy. Assault Cannon | -8/Materials | Hacked Carbon-fiber Leg | -7/Factory | Hacked Alien Tech Used ----------------- None Achievements -------------- Bumper Bots Ghost 'Em Challenges ------------ None Game ------ Seed FieldthrustGreatNullifier Manual? 0 Play Time 01:18:48 Cumulative 24.7 hours Start 2025.10.26 @ 20:04:27 End 2025.10.27 @ 10:20:50 Sessions 3 Manual Loads 0 Difficulty Rogue Special Mode None Game No. 33 Rogue 22 Adventurer 10 Explorer 1 Win Type - Total 0 Types 0/0/0/0/0/0/0/0/0/0 Lore% 13 Gallery% 22 Achievement% 14 Wizard Run 0 Options --------- Layout 0 ASCII 0 Keyboard 0 Movement Arrows Keybinds 0 Fullscreen 2 Font 18/SmallcapsGlow Map View 76x50 Zoom Use 0% Tactical HUD 1 Map Filters NONE Filters NONE Steam X RUN: 55c0b057-2af9-4010-ae37-b6102c59e419